bitfinex-derivatives/quotes_ETHF0:USTF0_20250110
["timestamp","ask_amount","ask_price","bid_price","bid_amount"]
[1736496911019,3.2078,3303.8,3303.1,3.51055]
[1736496911210,0.8933,3303.6,3303.1,3.51055]
[1736496911411,0.30274,3303.3,3303.1,3.2078]
[1736496913317,2.75694728,3303.6,3303.1,3.2078]
[1736496913518,0.30274,3303.3,3303.1,3.2078]
[1736496914811,0.30275,3303.2,3303.1,3.2078]
[1736496916118,0.30275,3303.2,3302.9,1.18507]
[1736496917416,5.07144728,3303.0,3302.5,0.4664]
[1736496917613,0.30279,3302.7,3302.6,0.4573]
[1736496918313,5.07144728,3303.0,3302.6,0.4573]
[1736496918621,0.30279,3302.8,3302.6,0.4573]
[1736496919117,5.07144728,3303.0,3302.6,0.4573]
[1736496919417,5.07144728,3303.0,3302.4,0.446]
[1736496919418,0.30281,3302.5,3302.4,0.446]
[1736496920020,0.30283,3302.3,3302.1,41.2573]
[1736496921020,0.8895,3302.6,3302.1,41.2573]
[1736496921213,0.30282,3302.4,3302.1,41.2573]
[1736496921412,0.8895,3302.6,3302.1,41.2573]
[1736496921616,0.30282,3302.4,3302.1,41.2573]
[1736496922316,0.8895,3302.6,3302.1,41.2573]
[1736496922619,0.30284,3302.3,3302.1,41.2573]
[1736496924112,4.0973,3302.6,3302.1,41.2573]
[1736496924430,0.30281,3302.5,3302.1,41.2573]
[1736496924719,0.30283,3302.4,3302.1,41.2573]
[1736496925817,0.30283,3302.3,3302.1,41.2573]
[1736496927314,0.30284,3302.2,3302.1,41.2573]
[1736496927717,0.30284,3302.2,3302.1,0.4573]
[1736496929116,1.276,3302.3,3302.1,0.4573]
[1736496929315,1.276,3302.3,3302.2,0.30284]
[1736496929517,0.457,3302.9,3302.1,0.4573]
[1736496929717,1.57877,3302.9,3302.5,0.3028]
[1736496929922,0.30279,3302.8,3302.6,1.3619]
[1736496931020,1.57878,3302.9,3302.6,1.6647]
[1736496931224,0.30279,3302.8,3302.6,0.9056]
[1736496931424,1.57878,3302.9,3302.6,1.2084]
[1736496931724,1.57878,3302.9,3302.7,0.30279]
[1736496931725,1.276,3302.9,3302.7,0.30279]
[1736496931921,3.2078,3303.0,3302.8,0.30278]
[1736496932424,3.2078,3303.0,3302.6,0.9056]
[1736496932618,0.30279,3302.7,3302.6,0.9056]
[1736496932826,0.30279,3302.7,3302.0,3.2078]
[1736496932827,1.86364728,3302.7,3302.0,3.2078]
[1736496933015,0.30284,3302.2,3302.1,0.8946]
[1736496933929,3.6436,3302.6,3302.1,0.8946]
[1736496934127,0.30284,3302.3,3302.1,0.8946]
[1736496935125,1.57883,3302.3,3302.1,0.8946]
[1736496935630,1.276,3302.3,3302.1,1.19745]
[1736496935828,1.276,3302.3,3302.1,0.8946]
[1736496936330,1.57883,3302.3,3302.1,0.8946]
[1736496937030,0.30284,3302.2,3302.1,0.8946]
[1736496940531,1.57883,3302.3,3302.1,0.8946]
[1736496940727,1.276,3302.3,3302.1,0.8946]
[1736496940928,0.30284,3302.2,3302.1,0.8946]
[1736496942332,1.57883,3302.3,3302.1,0.8946]
[1736496942536,1.276,3302.3,3302.2,0.30284]
[1736496942735,1.276,3302.8,3302.2,5.50864728]
[1736496942934,0.30279,3302.7,3302.4,0.30281]
[1736496943231,3.2078,3303.0,3302.3,40.8]
[1736496943232,1.276,3302.9,3302.3,40.8]
[1736496943428,0.3028,3302.7,3302.3,41.10283]
[1736496943635,0.3028,3302.7,3302.4,0.30282]
[1736496943932,0.3028,3302.7,3302.2,3.645]
[1736496944138,0.30278,3302.8,3302.2,3.94783]
[1736496944338,1.276,3302.9,3302.2,44.445]
[1736496944539,1.276,3302.9,3302.1,0.8946]
[1736496944540,3.2078,3302.6,3302.1,0.8946]
[1736496944741,0.30284,3302.2,3302.1,0.8946]
[1736496945439,0.30282,3302.4,3302.2,0.30284]
[1736496945742,0.30283,3302.4,3302.2,0.4566]
[1736496945940,0.30283,3302.3,3302.2,0.4566]
[1736496946441,0.4768,3302.7,3302.2,0.75944]
[1736496946442,0.30282,3302.5,3302.2,0.75944]
[1736496947545,0.30283,3302.3,3302.2,0.4566]
[1736496947747,3.2078,3302.6,3302.1,0.8946]
[1736496947950,0.30284,3302.2,3302.1,0.4619]
[1736496949250,1.276,3302.5,3302.1,0.4619]
[1736496949441,0.30283,3302.3,3302.1,0.4619]
[1736496950647,0.4768,3302.7,3302.1,0.4619]
[1736496950843,3.2078,3303.0,3302.3,0.30283]
[1736496951040,3.2078,3303.0,3302.2,5.52034728]
[1736496951041,3.2078,3303.0,3302.7,0.30279]
[1736496951247,3.2078,3303.0,3302.8,0.8955]
[1736496951944,3.2078,3303.0,3302.8,1.19828]
[1736496952744,3.2078,3303.0,3302.8,0.8955]
[1736496952943,0.30279,3302.7,3302.4,0.30282]
[1736496953645,5.51304728,3303.0,3302.3,0.8955]
[1736496953851,0.30282,3302.5,3302.3,0.8955]
[1736496954052,5.51304728,3303.0,3302.3,0.8955]
[1736496954053,0.30281,3302.6,3302.3,1.19833]
[1736496954254,0.30281,3302.5,3302.3,1.19833]
[1736496954448,0.30281,3302.6,3302.3,1.19833]
[1736496954956,5.51304728,3303.0,3302.3,0.8955]
[1736496955249,0.3028,3302.7,3302.4,0.30282]
[1736496955458,0.30281,3302.6,3302.3,0.8955]
[1736496956245,0.30282,3302.4,3302.3,0.8955]
[1736496956459,0.30284,3302.2,3301.9,0.30286]
[1736496956656,1.18183,3302.3,3302.0,0.77785]
[1736496957551,0.879,3302.3,3302.0,0.475]
[1736496957750,1.57883,3302.4,3302.1,0.30284]
[1736496957958,1.276,3302.4,3302.0,0.475]
[1736496958560,1.57883,3302.4,3302.0,0.77785]
[1736496958951,1.276,3302.4,3302.0,0.475]
[1736496959149,0.30284,3302.3,3302.0,0.475]
[1736496959351,1.7133,3302.4,3302.0,0.475]
[1736496959657,0.30284,3302.2,3302.0,0.475]
[1736496960352,3.2078,3302.1,3301.8,0.4302]
[1736496960546,3.2078,3302.1,3301.3,5.07144728]
[1736496960547,0.3029,3301.6,3301.3,3.2078]
[1736496961060,0.30291,3301.5,3301.3,3.2078]
[1736496961253,0.3029,3301.6,3301.3,3.2078]
[1736496961556,0.30291,3301.5,3301.3,3.2078]
[1736496961756,0.30291,3301.4,3301.1,0.4314]
[1736496961948,0.30291,3301.4,3301.2,40.8]
[1736496962352,0.77881,3301.5,3301.2,0.30293]
[1736496962551,0.77881,3301.5,3301.1,0.4314]
[1736496962755,0.4759,3301.5,3301.1,0.4314]
[1736496963052,0.77881,3301.5,3301.1,0.73434]
[1736496963251,1.5789,3301.6,3301.3,0.30292]
[1736496963654,1.5789,3301.6,3301.2,0.30293]
[1736496963860,1.276,3301.6,3301.2,0.30293]
[1736496964057,0.3029,3301.5,3301.1,0.73433]
[1736496964553,1.86364728,3301.5,3300.9,40.8]
[1736496964760,0.4472,3301.4,3300.4,5.07144728]
[1736496964951,0.30299,3300.6,3300.4,3.2078]
[1736496965151,1.276,3300.8,3300.4,3.2078]
[1736496965353,0.30299,3300.6,3300.4,3.2078]
[1736496965962,0.30298,3300.7,3300.4,3.2078]
[1736496967361,0.30299,3300.6,3300.4,3.2078]
[1736496967564,0.30298,3300.7,3300.4,3.2078]
[1736496968564,2.1921,3300.8,3300.5,0.30299]
[1736496968763,2.49507,3300.8,3300.4,3.5108]
[1736496968964,0.30298,3300.7,3300.4,3.2078]
[1736496969457,2.1921,3300.8,3300.4,3.2078]
[1736496969458,0.30299,3300.6,3300.4,3.2078]
[1736496969959,0.30298,3300.7,3300.5,40.8]
[1736496970866,0.30299,3300.6,3300.5,40.8]
[1736496971066,0.30298,3300.7,3300.5,40.8]
[1736496971465,0.30299,3300.6,3300.4,3.2078]
[1736496971668,0.30299,3300.5,3300.4,3.2078]
[1736496971870,0.30299,3300.6,3300.4,3.2078]
[1736496972766,1.86364728,3300.6,3300.0,3.6462]
[1736496972968,1.86364728,3300.3,3300.0,0.9122]
[1736496973164,1.86364728,3300.6,3300.0,0.9122]
[1736496973361,3.51077,3300.8,3300.4,0.303]
[1736496973565,3.51077,3300.8,3300.5,0.4738]
[1736496973867,3.2078,3300.8,3300.6,0.8744]
[1736496974268,3.51077,3300.8,3300.6,0.8744]
[1736496974667,0.30298,3300.7,3300.6,0.8744]
[1736496975170,0.30298,3300.7,3300.0,2.918]
[1736496975171,0.30299,3300.6,3300.0,2.918]
[1736496975366,0.30303,3300.2,3300.0,3.3632]
[1736496976071,0.30303,3300.1,3300.0,0.4452]
[1736496976361,3.2078,3300.3,3300.0,0.74824]
[1736496976362,0.30302,3300.3,3300.0,0.74824]
[1736496976569,0.30302,3300.3,3300.0,0.4452]
[1736496976769,0.30302,3300.2,3300.0,0.4452]
[1736496976963,0.30303,3300.2,3300.0,0.4452]
[1736496977164,0.4714,3300.5,3300.0,0.4452]
[1736496977367,0.30302,3300.3,3300.0,0.4452]
[1736496977667,0.30303,3300.2,3300.0,0.4452]
[1736496977865,0.4714,3300.5,3300.0,0.4452]
[1736496977866,0.30303,3300.1,3300.0,0.4452]
[1736496978360,0.30303,3300.2,3300.0,0.4452]
[1736496979165,5.07144728,3300.3,3300.0,0.4452]
[1736496979363,0.30303,3300.1,3300.0,0.4452]
[1736496979665,5.07144728,3300.3,3300.0,0.4452]
[1736496979864,0.30303,3300.1,3300.0,0.4452]
[1736496980171,0.30303,3300.2,3300.0,0.4452]
[1736496980664,0.30303,3300.1,3300.0,0.4452]
[1736496980869,0.73333,3300.1,3300.0,0.4452]
[1736496981066,1.86364728,3300.3,3300.0,0.4452]
[1736496981258,0.30301,3300.3,3300.0,0.74824]
[1736496981664,0.30301,3300.3,3300.0,0.4452]
[1736496982072,3.2078,3301.1,3300.0,0.4452]
[1736496982372,0.30296,3300.9,3300.3,3.2078]
[1736496982564,1.275,3301.0,3300.5,0.30299]
[1736496982871,0.30297,3300.8,3300.6,0.4649]
[1736496983065,0.30296,3300.9,3300.6,0.9136]
[1736496983276,0.30296,3300.9,3300.6,1.21658]
[1736496983771,0.30297,3300.8,3300.6,0.9136]
[1736496983967,0.30298,3300.7,3300.6,0.9136]
[1736496984270,0.30297,3300.8,3300.6,0.9136]
[1736496984471,1.86364728,3300.9,3300.6,0.9136]
[1736496984667,0.30298,3300.7,3300.6,0.9136]
[1736496985067,0.30298,3300.7,3299.9,3.2078]
[1736496985068,2.30214728,3300.9,3300.0,3.22103]
[1736496985268,0.30302,3300.2,3300.1,0.918]
[1736496985566,0.30301,3300.4,3300.1,0.918]
[1736496985767,1.86364728,3300.6,3300.1,0.918]
[1736496985768,0.30302,3300.3,3300.1,0.918]
[1736496985968,0.30301,3300.4,3300.1,1.22103]
[1736496986171,1.86364728,3300.6,3300.2,0.30302]
[1736496986473,1.86364728,3300.6,3300.1,0.918]
[1736496986685,0.30299,3300.6,3300.1,0.918]
[1736496986867,0.30299,3300.6,3300.2,0.30302]
[1736496987471,0.303,3300.5,3300.2,0.30302]
[1736496987861,3.2078,3300.7,3300.1,0.918]
[1736496988065,3.2078,3300.7,3300.1,1.22103]
[1736496988261,0.303,3300.5,3300.1,0.918]
[1736496988469,3.2078,3300.7,3300.1,0.918]
[1736496988670,3.2078,3300.7,3300.1,1.22103]
[1736496988671,0.303,3300.4,3300.1,1.22103]
[1736496988970,3.2078,3300.7,3300.1,0.918]
[1736496989169,0.303,3300.5,3300.2,0.30302]
[1736496989475,0.30297,3300.8,3300.3,3.2078]
[1736496989772,0.30297,3300.8,3300.5,0.30299]
[1736496989963,0.30299,3300.6,3300.3,3.51081]
[1736496990166,0.30297,3300.8,3300.5,0.30299]
[1736496990365,0.30297,3300.8,3300.6,0.4737]
[1736496990967,0.4385,3300.9,3300.6,0.77668]
[1736496991172,0.74146,3300.9,3300.6,0.77668]
[1736496991568,0.74146,3300.9,3300.7,0.4701]
[1736496992372,3.2078,3301.1,3300.7,0.4701]
[1736496992567,0.4632,3301.4,3300.8,0.4319]
[1736496992766,1.275,3301.3,3301.2,0.30293]
[1736496992970,3.2078,3301.5,3300.8,3.3499]
[1736496993167,1.275,3301.8,3301.7,0.30288]
[1736496993368,3.6595,3302.5,3302.0,0.30285]
[1736496993668,0.04827172,3302.4,3301.9,0.30287]
[1736496993867,4.9345,3302.5,3301.9,0.30287]
[1736496994080,0.35109774,3302.4,3301.9,0.30287]
[1736496994380,0.30283,3302.4,3301.9,0.30287]
[1736496995169,0.30283,3302.3,3301.8,0.74577]
[1736496995371,0.30284,3302.2,3301.8,0.4429]
[1736496995571,0.30286,3302.1,3301.7,3.2078]
[1736496995767,0.4765,3302.1,3301.7,3.2078]
[1736496995965,0.30287,3301.9,3301.7,3.2078]
[1736496996377,1.275,3302.2,3301.7,3.2078]
[1736496996593,1.275,3302.1,3301.9,0.30286]
[1736496996881,1.275,3302.1,3301.8,0.30287]
[1736496997077,1.275,3302.1,3301.7,3.2078]
[1736496997571,0.30284,3302.3,3301.8,0.30287]
[1736496997877,1.275,3302.2,3301.8,0.30287]
[1736496998278,1.275,3302.2,3301.5,40.8]
[1736496998479,1.275,3302.2,3301.7,3.2078]
[1736496998779,1.275,3302.2,3301.8,0.30287]
[1736496999272,0.4517,3302.5,3301.7,3.2078]
[1736496999474,1.274,3302.4,3301.7,3.2078]
[1736496999874,1.57682,3302.4,3301.8,0.30288]
[1736497000074,1.57682,3302.4,3301.9,0.30286]
[1736497000576,1.274,3302.4,3301.7,3.2078]
[1736497000773,1.57682,3302.4,3302.0,0.30286]
[1736497001074,1.274,3302.4,3302.1,0.30285]
[1736497001280,1.274,3302.4,3302.2,0.30284]
[1736497001775,5.07144728,3302.6,3302.3,0.30283]
[1736497001980,1.274,3302.6,3302.5,0.30281]
[1736497002176,1.274,3302.6,3302.1,3.2078]
[1736497002381,1.274,3302.6,3302.3,0.30282]
[1736497002672,3.6851,3303.1,3302.2,0.4369]
[1736497002879,0.04826044,3303.0,3302.7,0.30279]
[1736497003081,3.6652,3303.1,3302.7,0.30279]
[1736497003283,3.2078,3303.1,3302.9,0.30277]
[1736497003482,1.274,3303.3,3302.6,3.2078]
[1736497003778,0.4574,3303.5,3303.2,0.30275]
[1736497003983,4.4818,3303.6,3302.8,1.86364728]
[1736497004483,4.4818,3303.6,3303.2,0.30274]
[1736497004780,4.4818,3303.6,3303.3,0.30274]
[1736497005279,4.4818,3303.6,3303.2,0.30274]
[1736497005980,3.2078,3303.6,3303.2,0.30274]
[1736497007274,3.2078,3303.6,3303.0,0.4409]
[1736497007474,0.30272,3303.5,3303.0,0.74366]
[1736497007679,0.4358,3303.5,3303.1,0.30276]
[1736497008079,0.4358,3303.5,3303.2,0.30275]
[1736497010381,0.4358,3303.5,3303.1,0.30275]
[1736497010981,0.4358,3303.5,3303.2,0.30275]
[1736497011477,0.73852,3303.5,3303.1,0.30275]
[1736497011878,0.30273,3303.4,3303.0,0.74366]
[1736497012074,0.4358,3303.5,3303.0,0.4409]
[1736497012479,0.30274,3303.3,3303.0,0.4409]
[1736497012680,0.30275,3303.2,3303.0,0.4409]
[1736497012882,0.30274,3303.3,3303.0,0.4409]
[1736497013282,1.274,3303.4,3303.0,0.4409]
[1736497013583,0.30274,3303.3,3303.0,0.4409]
[1736497014286,1.57574,3303.3,3303.0,0.4409]
[1736497014582,0.30278,3302.9,3302.6,7.5478]
[1736497014784,0.4562,3302.8,3302.6,7.5478]
[1736497014989,0.9203,3302.8,3302.6,7.5478]
[1736497015482,1.22309,3302.8,3302.6,3.2078]
[1736497015687,0.9203,3302.8,3302.6,3.2078]
[1736497016083,0.9203,3302.8,3302.6,3.5106]
[1736497016481,0.9203,3302.8,3302.6,3.2078]
[1736497016879,1.22308,3302.8,3302.6,3.2078]
[1736497017290,0.9203,3302.8,3302.6,3.2078]
[1736497018389,1.22308,3302.8,3302.6,3.2078]
[1736497018689,0.9203,3302.8,3302.6,3.2078]
[1736497019090,0.9203,3302.8,3302.6,3.5106]
[1736497019291,0.30276,3303.1,3302.7,0.30279]
[1736497019687,0.30278,3302.9,3302.6,3.2078]
[1736497020088,0.30276,3303.1,3302.6,3.2078]
[1736497020280,4.1189,3303.2,3302.6,3.2078]
[1736497020483,0.30279,3302.8,3302.6,3.2078]
[1736497020686,0.30279,3302.7,3302.6,3.2078]
[1736497020885,0.30279,3302.8,3302.6,3.2078]
[1736497021592,3.2078,3302.7,3302.3,0.4554]
[1736497021885,0.30282,3302.5,3302.1,0.30284]
[1736497022089,0.30282,3302.5,3302.2,0.30284]
[1736497022992,3.6632,3302.7,3302.0,3.2078]
[1736497023195,0.3028,3302.6,3302.3,0.30283]
[1736497023685,0.3028,3302.6,3302.2,0.30283]
[1736497023890,1.274,3302.5,3302.2,0.30283]
[1736497024192,1.274,3302.5,3302.0,3.2078]
[1736497024390,1.274,3302.5,3302.0,3.51065]
[1736497024391,0.30283,3302.3,3302.0,3.51065]
[1736497024590,0.30283,3302.4,3302.1,0.30284]
[1736497025188,0.30283,3302.4,3302.0,3.51065]
[1736497025389,0.30283,3302.4,3302.1,0.30285]
[1736497025696,1.57682,3302.5,3302.1,0.30285]
[1736497025897,1.274,3302.5,3302.0,3.2078]
[1736497026190,1.274,3302.5,3302.3,0.30282]
[1736497026395,1.274,3303.2,3302.4,0.4604]
[1736497026596,0.30277,3303.0,3302.6,0.3028]
[1736497026794,0.30277,3303.0,3302.7,40.8]
[1736497026993,5.07144728,3303.0,3302.5,0.4378]
[1736497027192,0.30281,3302.6,3302.2,0.30283]
[1736497027494,0.8954,3302.5,3302.3,40.8]
[1736497027690,1.19821,3302.5,3302.0,4.106]
[1736497027884,0.8954,3302.5,3302.0,4.106]
[1736497028086,0.30283,3302.3,3302.0,4.106]
[1736497028299,0.30285,3302.1,3301.9,40.8]
[1736497028491,3.2078,3302.2,3301.6,3.2078]
[1736497028789,0.4496,3302.0,3301.7,0.30288]
[1736497028994,0.75247,3302.0,3301.6,3.51069]
[1736497029590,0.4496,3302.0,3301.4,41.6982]
[1736497029788,0.3029,3301.6,3301.4,41.6982]
[1736497029989,0.30289,3301.6,3301.4,41.6982]
[1736497030595,0.30289,3301.6,3301.4,0.8982]
[1736497030796,3.6468,3301.8,3301.4,0.4604]
[1736497031097,0.30289,3301.7,3301.4,0.4604]
[1736497031396,0.3029,3301.6,3301.4,0.4604]
[1736497031996,1.5759,3301.6,3301.4,0.4604]
[1736497032396,1.273,3301.6,3301.4,0.4604]
[1736497032597,1.273,3301.6,3301.1,3.6525]
[1736497032999,1.273,3301.6,3301.2,0.30293]
[1736497033203,1.5759,3301.6,3301.2,0.30293]
[1736497034001,1.5759,3301.6,3301.2,0.30292]
[1736497034394,1.273,3301.6,3301.1,3.6525]
[1736497034700,1.273,3301.6,3301.3,0.30292]
[1736497034894,1.273,3301.6,3301.1,3.6525]
[1736497035097,1.273,3301.6,3301.3,0.30292]
[1736497035499,0.30291,3301.5,3301.1,3.95543]
[1736497035993,1.273,3301.6,3301.1,3.95543]
[1736497035994,1.5759,3301.6,3301.1,3.6525]
[1736497036193,1.273,3301.6,3301.4,0.30291]
[1736497036389,1.273,3301.6,3301.1,3.6525]
[1736497036594,1.273,3301.6,3301.3,0.30292]
[1736497037000,1.273,3301.6,3301.1,0.4447]
[1736497037396,1.273,3301.6,3301.0,3.6655]
[1736497037397,0.30293,3301.2,3301.0,3.6655]
[1736497037594,0.30294,3301.1,3300.8,0.444]
[1736497037795,0.30297,3300.8,3300.5,0.4342]
[1736497038503,1.3694,3301.1,3300.5,0.4342]
[1736497038699,0.35125253,3301.0,3300.6,0.30298]
[1736497039006,0.30296,3301.0,3300.6,0.30298]
[1736497039896,0.30296,3300.9,3300.5,0.73719]
[1736497040098,4.5772,3301.1,3300.5,0.4342]
[1736497040301,0.30297,3300.8,3300.5,0.4342]
[1736497040498,0.30297,3300.8,3300.5,0.73719]
[1736497040499,1.273,3300.8,3300.5,0.73719]
[1736497040704,1.273,3300.8,3300.6,0.30298]
[1736497041100,3.2078,3301.1,3300.5,0.4342]
[1736497041402,3.2078,3301.1,3300.8,0.30296]
[1736497041604,3.2078,3301.1,3300.5,0.4342]
[1736497041605,3.2078,3301.1,3301.0,0.30295]
[1736497041896,3.2078,3301.1,3300.9,0.4365]
[1736497042297,3.2078,3301.1,3301.0,0.4563]
[1736497043305,1.273,3301.2,3301.0,0.4563]
[1736497044705,1.273,3301.2,3301.0,0.75925]
[1736497045205,1.273,3301.2,3301.1,0.30294]
[1736497045603,1.273,3301.2,3301.1,0.75324]
[1736497045803,1.273,3301.4,3301.1,0.75324]
[1736497046003,1.273,3301.4,3301.1,0.4503]
[1736497046208,1.273,3301.4,3301.2,0.30292]
[1736497047610,1.273,3301.4,3301.3,0.30292]
[1736497047809,1.273,3301.4,3301.2,0.30293]
[1736497048209,1.273,3301.4,3301.0,0.4563]
[1736497048403,0.30293,3301.3,3301.0,0.75924]
[1736497048703,1.91193494,3301.2,3300.8,3.2078]
[1736497048907,2.74804728,3301.2,3300.6,0.4439]
[1736497049107,2.74804728,3301.2,3300.6,0.74688]
[1736497049108,0.04829295,3301.1,3300.6,0.74688]
[1736497049407,0.04829295,3301.1,3300.6,0.4439]
[1736497049610,3.2078,3301.3,3300.6,0.4439]
[1736497049800,3.2078,3301.3,3301.2,0.30293]
[1736497055304,0.4749,3301.6,3301.1,1.3617]
[1736497055507,1.7479,3301.6,3301.2,0.30293]
[1736497055717,0.30291,3301.4,3301.1,0.4589]
[1736497055914,0.30293,3301.2,3301.1,0.4589]
[1736497056405,0.30293,3301.2,3300.9,0.30295]
[1736497056714,0.30294,3301.1,3300.9,0.4442]
[1736497056908,0.30295,3301.0,3300.9,0.4442]
[1736497057215,3.6727,3301.3,3300.8,3.2078]
[1736497057404,0.30294,3301.1,3300.8,3.51076]
[1736497057707,3.2078,3301.3,3301.2,0.30293]
[1736497058099,1.273,3301.5,3300.9,0.4681]
[1736497058313,1.273,3301.5,3301.4,0.30291]
[1736497059312,1.273,3301.5,3301.1,0.4459]
[1736497059710,1.273,3301.5,3301.4,0.30291]
[1736497059910,0.30289,3301.7,3301.4,0.30291]
[1736497060119,1.272,3301.6,3301.4,0.30291]
[1736497060605,0.30288,3301.8,3301.5,0.3029]
[1736497060804,1.272,3301.7,3301.2,40.8]
[1736497061019,1.272,3301.7,3301.5,0.3029]
[1736497062009,0.4769,3302.2,3301.3,1.86364728]
[1736497062405,0.30285,3302.1,3301.7,0.30288]
[1736497062614,0.30286,3302.0,3301.7,0.30288]
[1736497062816,0.4482,3302.0,3301.2,44.0078]
[1736497063313,0.4482,3302.0,3301.6,0.30289]
[1736497063513,0.4482,3302.0,3301.2,44.0078]
[1736497063713,0.75106,3302.0,3301.7,0.30288]
[1736497064018,0.4482,3302.0,3301.7,0.30288]
[1736497064403,0.4482,3302.0,3301.2,44.0078]
[1736497064707,0.4482,3302.0,3301.8,0.30288]
[1736497065014,0.4482,3302.0,3301.7,0.30288]
[1736497065312,0.4769,3302.2,3301.2,44.0078]
[1736497065510,4.4798,3302.3,3302.0,0.30286]
[1736497065718,1.272,3302.3,3302.1,0.30284]
[1736497066316,1.7124,3302.7,3302.6,0.3028]
[1736497066709,1.7124,3302.7,3302.0,3.2078]
[1736497067017,1.272,3302.7,3302.0,3.2078]
[1736497067224,1.272,3302.7,3302.4,0.30281]
[1736497068413,1.272,3302.7,3302.0,3.2078]
[1736497068615,1.272,3302.8,3302.4,3.2078]
[1736497068813,1.272,3302.8,3302.5,0.9095]
[1736497069015,1.272,3302.8,3302.7,0.30279]
[1736497070620,1.21886,3303.1,3302.7,0.30279]
[1736497070814,1.272,3303.0,3302.7,0.30279]
[1736497071823,1.272,3303.0,3302.8,0.30278]
[1736497072218,1.57477,3303.0,3302.6,0.3028]
[1736497072414,1.272,3303.0,3302.7,0.30279]
[1736497072616,1.86364728,3302.9,3302.4,3.2078]
[1736497072816,0.35104165,3302.8,3302.4,3.51062]
[1736497073014,0.30278,3302.8,3302.4,3.51062]
[1736497073215,1.272,3302.7,3302.4,3.51062]
[1736497073715,1.272,3302.7,3302.6,0.3028]
[1736497073913,1.272,3302.7,3302.5,0.30281]
[1736497074519,1.3795,3303.1,3302.4,3.2078]
[1736497074715,1.3795,3303.1,3302.7,0.30279]
[1736497074716,2.95426,3303.1,3302.7,0.30279]
[1736497074916,0.30277,3303.0,3302.6,0.3028]
[1736497075111,1.272,3303.0,3302.7,0.30279]
[1736497075722,1.272,3303.0,3302.8,0.30278]
[1736497075923,1.272,3303.0,3302.5,0.4681]
[1736497076226,1.272,3303.0,3302.7,0.30279]
[1736497076922,1.272,3303.0,3302.6,0.4571]
[1736497076923,1.272,3303.0,3302.8,0.30278]
[1736497077520,1.68226,3303.1,3302.8,0.30278]
[1736497077725,1.272,3303.0,3302.8,0.30278]
[1736497078318,1.272,3303.0,3302.6,0.9319]
[1736497078525,1.57477,3303.0,3302.7,0.30279]
[1736497079429,1.86364728,3302.9,3302.4,3.2078]
[1736497079628,0.30281,3302.6,3302.4,3.2078]
[1736497079823,0.476,3302.5,3302.4,3.2078]
[1736497080127,0.9418,3302.5,3302.4,3.2078]
[1736497080315,0.9418,3302.5,3302.4,3.51062]
[1736497080519,0.30278,3302.8,3302.5,0.30281]
[1736497080720,1.24458,3302.8,3302.5,0.30281]
[1736497081030,1.86364728,3302.6,3301.6,3.2078]
[1736497081225,0.30282,3302.4,3301.8,1.24747]
[1736497081528,0.30283,3302.3,3301.9,0.30286]
[1736497081731,0.30285,3302.1,3301.8,1.24747]
[1736497081932,1.272,3302.2,3301.8,1.24747]
[1736497082225,1.86364728,3302.0,3301.2,3.2078]
[1736497082521,4.4798,3302.2,3301.1,1.24753]
[1736497082522,0.30291,3301.5,3301.1,1.24753]
[1736497082727,1.86364728,3301.7,3301.1,41.7446]
[1736497082925,0.30291,3301.5,3301.1,42.04753]
[1736497083130,0.3029,3301.6,3301.2,0.30293]
[1736497083323,0.4575,3301.7,3301.1,0.9446]
[1736497083523,0.3029,3301.6,3301.2,0.30292]
[1736497083828,0.4575,3301.7,3301.1,0.9446]
[1736497084028,2.32114728,3301.7,3301.1,0.9446]
[1736497084230,2.62403728,3301.7,3301.2,0.30292]
[1736497084626,2.32114728,3301.7,3301.2,0.30292]
[1736497084825,2.32114728,3301.7,3301.1,0.9446]
[1736497085026,0.76039,3301.7,3301.3,0.30292]
[1736497085235,0.76039,3301.7,3301.2,0.30293]
[1736497085532,0.30289,3301.6,3301.2,0.30293]
[1736497085833,0.76039,3301.7,3301.3,0.30292]
[1736497086126,0.76039,3301.7,3301.1,0.9446]
[1736497086127,3.2078,3301.8,3301.6,0.30289]
[1736497086433,0.3029,3301.6,3301.2,3.2078]
[1736497087030,3.2078,3301.8,3301.2,3.2078]
[1736497087237,0.30289,3301.7,3301.3,0.30292]
[1736497088834,3.2078,3301.8,3301.2,3.51072]
[1736497089034,0.3029,3301.6,3301.2,3.51072]
[1736497089534,0.30289,3301.7,3301.3,0.30292]
[1736497090234,3.2078,3301.8,3301.3,0.30292]
[1736497090431,3.51068,3301.8,3301.3,0.30292]
[1736497090632,0.30288,3301.7,3301.3,0.30292]
[1736497090836,3.51068,3301.8,3301.4,0.30291]
[1736497091738,3.2078,3301.8,3301.2,6.1258]
[1736497092038,3.2078,3301.8,3301.6,0.30289]
[1736497092431,3.2078,3301.8,3301.7,0.30288]
[1736497093038,1.272,3302.1,3301.8,0.30287]
[1736497093236,1.272,3302.1,3301.9,0.434]
[1736497093442,1.272,3302.1,3301.9,0.8833]
[1736497094141,1.272,3302.1,3301.9,1.18617]
[1736497094442,1.272,3302.1,3302.0,0.30286]
[1736497095342,1.272,3302.1,3301.9,0.8833]
[1736497095543,1.272,3302.1,3302.0,0.30286]